[Event "17th Memorial Lezcano Montalvo 2025"]
[Site "Gran Canaria"]
[Date "2025.04.20"]
[Round "9.1"]
[White "Korneev, Oleg"]
[Black "Larino Nieto, David"]
[Result "1/2-1/2"]
[Annotator "ChessBase"]
[ECO "C90"]
[WhiteElo "2466"]
[BlackElo "2448"]
[PlyCount "34"]
[EventDate "2025.04.13"]
[EventType "swiss"]
[EventCountry "ESP"]
[SourceTitle "playchess.com"]
[Source "ChessBase"]
[SourceQuality "1"]
[TimeControl "5400+30"]

1. e4 {[%emt 0:01:56]} e5 {[%emt 0:01:07]} 2. Nf3 {[%emt 0:01:11]} Nc6 {[%emt 0:00:03]} 3. Bb5 {[%emt 0:11:05]} Nf6 {[%emt 0:01:24]} 4. d3 {[%emt 0:06:12]} d6 {[%emt 0:06:09]} 5. c3 {[%emt 0:08:53]} Be7 {[%emt 0:00:54]} 6. Nbd2 {[%emt 0:04:43]} O-O {[%emt 0:01:58]} 7. h3 {[%emt 0:01:52]} a6 {[%emt 0:02:23]} 8. Ba4 {[%emt 0:06:46]} b5 {[%emt 0:00:31]} 9. Bb3 {[%emt 0:05:22]} Na5 {[%emt 0:13:31]} 10. Bc2 {[%emt 0:00:15]} c5 {[%emt 0:00:01]} 11. O-O {[%emt 0:02:04]} Re8 {[%emt 0:02:16]} 12. Re1 {[%emt 0:01:04]} Bf8 {[%emt 0:00:27]} 13. Nf1 {[%emt 0:03:14]} Bb7 {[%emt 0:00:13]} 14. Ng3 {[%emt 0:00:06]} h6 {[%emt 0:08:38]} 15. a4 {[%emt 0:10:25]} b4 {[%emt 0:04:04]} 16. cxb4 {[%emt 0:09:01]} cxb4 {[%emt 0:54:51]} 17. d4 exd4 1/2-1/2

[Event "17th Memorial Lezcano Montalvo 2025"]
[Site "Gran Canaria"]
[Date "2025.04.20"]
[Round "9.2"]
[White "Kaczur, Florian"]
[Black "Petriashvili, Nikoloz"]
[Result "1/2-1/2"]
[Annotator "ChessBase"]
[ECO "D91"]
[WhiteElo "2495"]
[BlackElo "2459"]
[PlyCount "29"]
[EventDate "2025.04.13"]
[EventType "swiss"]
[EventCountry "ESP"]
[SourceTitle "playchess.com"]
[Source "ChessBase"]
[SourceQuality "1"]
[TimeControl "5400+30"]

1. d4 {[%emt 0:00:03]} Nf6 {[%emt 0:05:58]} 2. c4 {[%emt 0:00:18]} g6 {[%emt 0:00:06]} 3. Nc3 {[%emt 0:00:21]} d5 {[%emt 0:00:07]} 4. Nf3 {[%emt 0:00:50]} Bg7 {[%emt 0:00:29]} 5. Bg5 {[%emt 0:00:36]} Ne4 {[%emt 0:00:45]} 6. cxd5 {[%emt 0:03:11]} Nxg5 {[%emt 0:00:45]} 7. Nxg5 {[%emt 0:00:06]} e6 {[%emt 0:00:08]} 8. Nf3 {[%emt 0:00:25]} exd5 {[%emt 0:00:07]} 9. e3 {[%emt 0:01:22]} c6 {[%emt 0:00:54]} 10. Be2 {[%emt 0:00:56]} a5 {[%emt 0:01:10]} 11. O-O {[%emt 0:01:00]} O-O {[%emt 0:00:08]} 12. a3 {[%emt 0:00:52]} Qe7 {[%emt 0:00:50]} 13. Re1 {[%emt 0:01:20]} Be6 {[%emt 0:00:39]} 14. Rc1 {[%emt 0:01:19]} Nd7 {[%emt 0:00:46]} 15. Na4 {[%emt 0:02:01]} 1/2-1/2

[Event "17th Memorial Lezcano Montalvo 2025"]
[Site "Gran Canaria"]
[Date "2025.04.20"]
[Round "9.3"]
[White "Maerevoet, Sim"]
[Black "Fiorito, Joaquin"]
[Result "0-1"]
[Annotator "ChessBase"]
[ECO "E44"]
[WhiteElo "2451"]
[BlackElo "2402"]
[PlyCount "96"]
[EventDate "2025.04.13"]
[EventType "swiss"]
[EventCountry "ESP"]
[SourceTitle "playchess.com"]
[Source "ChessBase"]
[SourceQuality "1"]
[TimeControl "5400+30"]

1. d4 {[%emt 0:00:09]} Nf6 {[%emt 0:00:05]} 2. c4 {[%emt 0:00:14]} e6 {[%emt 0:00:06]} 3. Nc3 {[%emt 0:00:05]} Bb4 {[%emt 0:01:19]} 4. e3 {[%emt 0:00:41]} b6 {[%emt 0:01:00]} 5. Nge2 {[%emt 0:07:33]} Ne4 {[%emt 0:00:18]} 6. Qc2 {[%emt 0:02:55]} Nxc3 {[%emt 0:03:29]} 7. Nxc3 {[%emt 0:01:22]} Bxc3+ {[%emt 0:00:08]} 8. Qxc3 {[%emt 0:00:15]} Bb7 {[%emt 0:00:10]} 9. Be2 {[%emt 0:12:23]} Qg5 {[%emt 0:04:24]} 10. Rg1 {[%emt 0:13:30]} O-O {[%emt 0:04:41]} 11. Bd2 {[%emt 0:02:42]} d6 {[%emt 0:01:14]} 12. O-O-O {[%emt 0:01:20]} Nd7 {[%emt 0:00:58]} 13. g4 {[%emt 0:05:19]} Qe7 {[%emt 0:01:50]} 14. Rg3 {[%emt 0:06:21]} c5 {[%emt 0:07:24]} 15. Kb1 {[%emt 0:01:58]} e5 {[%emt 0:02:01]} 16. d5 {[%emt 0:01:04]} e4 {[%emt 0:00:08]} 17. g5 {[%emt 0:01:13]} b5 {[%emt 0:02:04]} 18. h4 {[%emt 0:03:06]} Ne5 {[%emt 0:00:56]} 19. Rdg1 {[%emt 0:05:07]} bxc4 {[%emt 0:01:03]} 20. Bxc4 {[%emt 0:01:17]} a5 {[%emt 0:01:53]} 21. h5 {[%emt 0:03:18]} Bc8 {[%emt 0:04:34]} 22. Qc2 {[%emt 0:02:26]} Bf5 {[%emt 0:01:11]} 23. Bb5 {[%emt 0:04:17]} Qb7 {[%emt 0:02:17]} 24. Bc6 {[%emt 0:01:20]} Nxc6 {[%emt 0:00:11]} 25. dxc6 {[%emt 0:00:01]} Qxc6 {[%emt 0:00:26]} 26. h6 {[%emt 0:01:40]} Qb5 {[%emt 0:00:31]} 27. Bc3 {[%emt 0:05:01]} d5 {[%emt 0:03:06]} 28. Bxg7 {[%emt 0:01:51]} Rfe8 {[%emt 0:00:06]} 29. Rc1 {[%emt 0:00:51]} d4 {[%emt 0:03:56]} 30. Qc4 {[%emt 0:01:22]} Rab8 {[%emt 0:01:19]} 31. Qxb5 {[%emt 0:00:55]} Rxb5 {[%emt 0:00:01]} 32. Ka1 {[%emt 0:01:35]} d3 {[%emt 0:02:31]} 33. Rgg1 {[%emt 0:02:26]} Be6 {[%emt 0:00:08]} 34. Bf6 {[%emt 0:03:24]} c4 {[%emt 0:00:21]} 35. Rgd1 {[%emt 0:00:53]} Rc8 {[%emt 0:02:04]} 36. Rd2 {[%emt 0:00:47]} Kf8 {[%emt 0:00:24]} 37. Rh1 {[%emt 0:03:33]} Ke8 {[%emt 0:00:23]} 38. Rg1 {[%emt 0:01:53]} Kd7 {[%emt 0:00:15]} 39. Bc3 {[%emt 0:01:57]} Rcc5 {[%emt 0:00:47]} 40. Bf6 {[%emt 0:00:01]} Rf5 {[%emt 0:00:19]} 41. a3 {[%emt 0:01:21]} Rf3 {[%emt 0:01:39]} 42. Rh1 {[%emt 0:00:50]} Rbf5 {[%emt 0:00:18]} 43. Bc3 {[%emt 0:01:10]} Rxf2 {[%emt 0:00:19]} 44. Rxf2 {[%emt 0:00:12]} Rxf2 {[%emt 0:00:01]} 45. Kb1 {[%emt 0:00:48]} Bg4 {[%emt 0:00:11]} 46. Rg1 {[%emt 0:00:29]} Bf3 {[%emt 0:00:43]} 47. Kc1 {[%emt 0:00:32]} Rc2+ {[%emt 0:00:05]} 48. Kb1 {[%emt 0:00:02]} Rxc3 {[%emt 0:00:21]} 0-1

[Event "17th Memorial Lezcano Montalvo 2025"]
[Site "Gran Canaria"]
[Date "2025.04.20"]
[Round "9.4"]
[White "Pap, Misa"]
[Black "Gomez Ledo, Roberto Carlos"]
[Result "1-0"]
[Annotator "RC"]
[ECO "C42"]
[WhiteElo "2444"]
[BlackElo "2396"]
[PlyCount "175"]
[EventDate "2025.04.13"]
[EventType "swiss"]
[EventCountry "ESP"]
[SourceTitle "playchess.com"]
[Source "ChessBase"]
[SourceQuality "1"]
[TimeControl "5400+30"]

1. e4 {[%emt 1:31:00]} e5 {[%emt 1:31:00]} 2. Nf3 {[%emt 0:00:30]} Nf6 {[%emt 0:00:30]} 3. Nxe5 {[%emt 0:00:00]} d6 {[%emt 0:00:00]} 4. Nf3 {[%emt 0:00:00]} Nxe4 {[%emt 0:00:00]} 5. Nc3 {[%emt 0:00:00]} Nxc3 {[%emt 0:00:00]} 6. dxc3 {[%emt 0:00:00]} Be7 {[%emt 0:00:00]} 7. Bf4 {[%emt 0:00:00]} Nc6 {[%emt 0:00:00]} 8. Qd2 {[%emt 0:00:00]} Be6 {[%emt 0:00:00]} 9. O-O-O {[%emt 0:00:00]} Qd7 {[%emt 0:00:00]} 10. b3 {[%emt 0:00:00]} h6 {[%emt 0:00:00]} 11. Bb5 {[%emt 0:00:00]} a6 {[%emt 0:00:00]} 12. Bxc6 {[%emt 0:00:00]} Qxc6 {[%emt 0:00:00]} 13. Nd4 {[%emt 0:00:00]} Qd7 {[%emt 0:00:00]} 14. Rhe1 {[%emt 0:00:00]} Bf6 {[%emt 0:00:00]} 15. Nxe6 {[%emt 0:00:00]} fxe6 {[%emt 0:00:00]} 16. Qd5 {[%emt 0:00:00]} O-O-O {[%emt 0:00:00]} 17. Rxe6 {[%emt 0:00:00]} Bxc3 {[%emt 0:00:00]} 18. Rd3 {[%emt 0:00:00]} Bf6 {[%emt 0:00:00]} 19. Re4 {[%emt 0:00:00]} Rhe8 {[%emt 0:00:00]} 20. Rc4 {[%emt 0:00:00]} Qb5 {[%emt 0:00:00]} 21. Qxb5 {[%emt 0:00:00]} axb5 {[%emt 0:00:00]} 22. Rb4 {[%emt 0:00:00]} c6 {[%emt 0:00:00]} 23. Be3 {[%emt 0:00:00]} Re6 {[%emt 0:00:00]} 24. a4 {[%emt 0:00:00]} bxa4 {[%emt 0:00:00]} 25. bxa4 {[%emt 0:00:00]} Re5 {[%emt 0:00:00]} 26. Kd2 {[%emt 0:00:00]} Rd7 {[%emt 0:00:00]} 27. f4 {[%emt 0:00:00]} Re8 {[%emt 0:00:00]} 28. a5 {[%emt 0:02:22]} Bd8 {[%emt 0:03:08]} 29. Ra4 {[%emt 0:00:38]} c5 {[%emt 0:03:32]} 30. a6 {[%emt 0:01:05]} bxa6 {[%emt 0:00:02]} 31. Rxa6 {[%emt 0:00:13]} Bc7 {[%emt 0:00:41]} 32. Bxc5 {[%emt 0:03:00]} Re4 {[%emt 0:01:50]} 33. Ra8+ {[%emt 0:02:07]} Kb7 {[%emt 0:00:39]} 34. Ra7+ {[%emt 0:00:06]} Kc6 {[%emt 0:00:43]} 35. Be3 {[%emt 0:01:27]} Rc4 {[%emt 0:00:11]} 36. g3 {[%emt 0:01:05]} d5 {[%emt 0:01:33]} 37. Ra6+ {[%emt 0:00:36]} Kb5 {[%emt 0:00:49]} 38. Ra2 {[%emt 0:00:47]} d4 {[%emt 0:00:40]} 39. Bf2 {[%emt 0:00:25]} Ba5+ {[%emt 0:00:09]} 40. Ke2 {[%emt 0:00:53]} Bc3 {[%emt 0:02:52]} 41. Kf3 {[%emt 0:00:03]} Rb4 {[%emt 0:00:31]} 42. Ra8 {[%emt 0:00:14]} Rc4 {[%emt 0:00:53]} 43. Rb8+ {[%emt 0:00:14]} Kc6 {[%emt 0:00:43]} 44. Rd1 {[%emt 0:02:29]} Ba5 {[%emt 0:00:27]} 45. Ra8 {[%emt 0:00:58]} Bb6 {[%emt 0:00:42]} 46. Ra2 {[%emt 0:00:20]} Kd5 {[%emt 0:00:50]} 47. Rb1 {[%emt 0:00:33]} Rc3+ {[%emt 0:00:14]} 48. Kg4 {[%emt 0:00:17]} Bc5 {[%emt 0:00:04]} 49. Re1 {[%emt 0:01:24]} Rc7 {[%emt 0:00:17]} 50. h4 {[%emt 0:00:55]} g6 {[%emt 0:01:27]} 51. Re5+ {[%emt 0:00:30]} Kc4 {[%emt 0:00:25]} 52. Ra4+ {[%emt 0:00:49]} Kb5 {[%emt 0:00:32]} 53. Rxd4 {[%emt 0:00:34]} Rxc2 {[%emt 0:00:06]} 54. Be3 {[%emt 0:00:05]} Ka6 {[%emt 0:01:04]} 55. Ra4+ {[%emt 0:01:08]} Kb7 {[%emt 0:00:15]} 56. Bxc5 {[%emt 0:00:14]} R7xc5 {[%emt 0:00:10]} 57. Rae4 {[%emt 0:00:37]} R2c3 {[%emt 0:00:55]} 58. Rxc5 {[%emt 0:00:34]} Rxc5 {[%emt 0:00:04]} 59. Re6 {[%emt 0:01:09]} h5+ {[%emt 0:00:35]} 60. Kh3 {[%emt 0:00:04]} Rc6 {[%emt 0:00:17]} 61. Re5 {[%emt 0:00:59]} Kc7 {[%emt 0:00:24]} 62. Kg2 {[%emt 0:00:08]} Kd7 {[%emt 0:00:07]} 63. Kf3 {[%emt 0:00:13]} Rc3+ {[%emt 0:00:10]} 64. Re3 {[%emt 0:00:04]} Rc1 {[%emt 0:00:25]} 65. Kf2 {[%emt 0:01:17]} Rc2+ {[%emt 0:00:12]} 66. Kf1 {[%emt 0:00:12]} Rb2 {[%emt 0:00:29]} 67. Re2 {[%emt 0:00:20]} Rb3 {[%emt 0:00:06]} 68. Kf2 {[%emt 0:00:01]} Ra3 {[%emt 0:00:06]} 69. Kg2 {[%emt 0:00:24]} Rb3 {[%emt 0:00:07]} 70. f5 {[%emt 0:01:44]} gxf5 {[%emt 0:00:59]} 71. Re5 {[%emt 0:00:03]} Rb2+ {[%emt 0:00:57]} 72. Kf3 {[%emt 0:00:01]} Rb3+ {[%emt 0:00:21]} 73. Kf4 {[%emt 0:00:04]} Rb4+ {[%emt 0:00:06]} 74. Kxf5 {[%emt 0:00:21]} Rg4 {[%emt 0:00:09]} 75. Re3 {[%emt 0:00:38]} Kd6 {[%emt 0:00:13]} 76. Kf6 {[%emt 0:00:05]} Kd7 {[%emt 0:00:58]} 77. Re7+ {[%emt 0:00:21]} Kd6 {[%emt 0:02:18]} 78. Rg7 {[%emt 0:00:07]} Ra4 {[%emt 0:00:28]} 79. Rg5 {[%emt 0:00:08]} Ra3 {[%emt 0:00:46]} 80. Kg6 {[%emt 0:00:36]} Ke6 {[%emt 0:00:05]} 81. Kxh5 {[%emt 0:00:07]} Kf7 {[%emt 0:00:10]} 82. Kh6 {[%emt 0:00:39]} Kf8 {[%emt 0:00:47]} 83. g4 {[%emt 0:00:11]} Ra7 {[%emt 0:00:40]} 84. h5 {[%emt 0:00:18]} Rb7 {[%emt 0:00:31]} 85. Rg6 {[%emt 0:00:06]} Ra7 {[%emt 0:00:05]} 86. g5 {[%emt 0:00:05]} Rb7 {[%emt 0:00:25]} 87. Rc6 {[%emt 0:00:12]} Rb8 {[%emt 0:00:13]} 88. Kh7 {[%emt 0:00:14]} 1-0

[Event "17th Memorial Lezcano Montalvo 2025"]
[Site "Gran Canaria"]
[Date "2025.04.20"]
[Round "9.5"]
[White "Narciso Dublan, Marc"]
[Black "Martinez Ramirez, Lennis"]
[Result "1-0"]
[Annotator "ChessBase"]
[ECO "B26"]
[WhiteElo "2376"]
[BlackElo "2443"]
[PlyCount "105"]
[EventDate "2025.04.13"]
[EventType "swiss"]
[EventCountry "ESP"]
[SourceTitle "playchess.com"]
[Source "ChessBase"]
[SourceQuality "1"]
[TimeControl "5400+30"]

1. e4 {[%emt 1:31:00]} c5 {[%emt 0:04:24]} 2. Nc3 {[%emt 0:00:00]} Nc6 {[%emt 0:00:40]} 3. g3 {[%emt 0:00:00]} g6 {[%emt 0:00:16]} 4. Bg2 {[%emt 0:00:00]} Bg7 {[%emt 0:00:07]} 5. d3 {[%emt 0:00:00]} d6 {[%emt 0:00:34]} 6. Be3 {[%emt 0:00:00]} Nf6 {[%emt 0:03:27]} 7. Nge2 {[%emt 0:00:00]} b5 {[%emt 0:00:47]} 8. a3 {[%emt 0:00:00]} Rb8 {[%emt 0:02:30]} 9. O-O {[%emt 0:00:00]} a5 {[%emt 0:01:40]} 10. Qc1 {[%emt 0:00:00]} b4 {[%emt 0:08:19]} 11. axb4 {[%emt 0:00:00]} axb4 {[%emt 0:00:06]} 12. Nd5 {[%emt 0:00:00]} Ng4 {[%emt 0:08:59]} 13. Bg5 {[%emt 0:00:00]} h6 {[%emt 0:07:59]} 14. Bd2 {[%emt 0:00:00]} b3 {[%emt 0:00:57]} 15. c3 {[%emt 0:00:00]} Nge5 {[%emt 0:00:31]} 16. d4 {[%emt 0:00:00]} Nd7 {[%emt 0:00:27]} 17. Rd1 {[%emt 0:00:00]} e6 {[%emt 0:00:59]} 18. Ne3 {[%emt 0:00:00]} h5 {[%emt 0:01:07]} 19. Nc4 {[%emt 0:00:00]} Nb6 {[%emt 0:01:18]} 20. Bg5 {[%emt 0:00:00]} Qc7 {[%emt 0:00:23]} 21. Nxb6 {[%emt 0:00:00]} Rxb6 {[%emt 0:01:02]} 22. e5 {[%emt 0:00:00]} d5 {[%emt 0:10:59]} 23. dxc5 {[%emt 0:00:00]} Rb8 {[%emt 0:01:51]} 24. c4 {[%emt 0:00:00]} O-O {[%emt 0:00:05]} 25. cxd5 {[%emt 0:00:00]} exd5 {[%emt 0:00:01]} 26. Nc3 {[%emt 0:00:00]} Bg4 {[%emt 0:01:26]} 27. Re1 {[%emt 0:00:00]} Nb4 {[%emt 0:00:22]} 28. Nxd5 {[%emt 0:00:00]} Nxd5 {[%emt 0:00:01]} 29. Bxd5 {[%emt 0:00:00]} Rb5 {[%emt 0:00:02]} 30. Be3 {[%emt 0:03:32]} Qxe5 {[%emt 0:00:01]} 31. Qc4 {[%emt 0:01:06]} Rb4 {[%emt 0:01:15]} 32. Bxf7+ {[%emt 0:01:50]} Rxf7 {[%emt 0:00:00]} 33. Qxb4 {[%emt 0:01:11]} Qd5 {[%emt 0:00:10]} 34. Ra4 {[%emt 0:02:53]} Bf3 {[%emt 0:01:35]} 35. Qc4 {[%emt 0:01:23]} Qc6 {[%emt 0:02:15]} 36. Ra6 {[%emt 0:00:57]} Qd7 {[%emt 0:02:56]} 37. Qe6 {[%emt 0:01:37]} Qxe6 {[%emt 0:08:03]} 38. Rxe6 {[%emt 0:00:03]} Bxb2 {[%emt 0:00:01]} 39. Rxg6+ {[%emt 0:01:37]} Kh7 {[%emt 0:00:00]} 40. Rh6+ {[%emt 0:00:58]} Kg7 {[%emt 0:00:02]} 41. Rb6 {[%emt 0:01:28]} Bc3 {[%emt 0:00:05]} 42. Bh6+ {[%emt 0:01:22]} Kh7 {[%emt 0:00:09]} 43. Re3 {[%emt 0:00:09]} Bd4 {[%emt 0:01:26]} 44. Rexb3 {[%emt 0:00:19]} Bxc5 {[%emt 0:00:22]} 45. R6b5 {[%emt 0:00:46]} Bd1 {[%emt 0:04:45]} 46. Be3 {[%emt 0:00:29]} Be7 {[%emt 0:01:21]} 47. Rb1 {[%emt 0:00:44]} Bf3 {[%emt 0:00:02]} 48. Ra5 {[%emt 0:00:27]} h4 {[%emt 0:02:20]} 49. Ra7 {[%emt 0:00:16]} Kg6 {[%emt 0:01:30]} 50. Rb6+ {[%emt 0:00:26]} Kg7 {[%emt 0:02:40]} 51. Bd4+ {[%emt 0:00:42]} Kg8 {[%emt 0:00:45]} 52. Rh6 {[%emt 0:00:34]} Bd8 {[%emt 0:05:38]} 53. Rh8# {[%emt 0:01:11]} 1-0

[Event "17th Memorial Lezcano Montalvo 2025"]
[Site "Gran Canaria"]
[Date "2025.04.20"]
[Round "9.7"]
[White "Yelisieiev, Yevhenii"]
[Black "Strikovic, Aleksa"]
[Result "1-0"]
[Annotator "ChessBase"]
[ECO "A49"]
[WhiteElo "2413"]
[BlackElo "2367"]
[PlyCount "81"]
[EventDate "2025.04.13"]
[EventType "swiss"]
[EventCountry "ESP"]
[SourceTitle "playchess.com"]
[Source "ChessBase"]
[SourceQuality "1"]
[TimeControl "5400+30"]

1. d4 {[%emt 0:00:03]} Nf6 {[%emt 0:00:13]} 2. c4 {[%emt 0:00:53]} g6 {[%emt 0:00:07]} 3. Nf3 {[%emt 0:00:06]} Bg7 {[%emt 0:00:07]} 4. g3 {[%emt 0:00:04]} O-O {[%emt 0:00:28]} 5. Bg2 {[%emt 0:00:06]} c6 {[%emt 0:02:03]} 6. O-O {[%emt 0:00:36]} d5 {[%emt 0:00:03]} 7. b3 {[%emt 0:01:48]} dxc4 {[%emt 0:04:18]} 8. bxc4 {[%emt 0:00:11]} c5 {[%emt 0:00:05]} 9. Bb2 {[%emt 0:00:13]} cxd4 {[%emt 0:09:39]} 10. Nxd4 {[%emt 0:00:09]} Ng4 {[%emt 0:03:30]} 11. Bc3 {[%emt 0:00:26]} Nd7 {[%emt 0:10:59]} 12. Qc1 {[%emt 0:17:57]} Nb6 {[%emt 0:07:39]} 13. Nb3 {[%emt 0:05:27]} Ne5 {[%emt 0:09:04]} 14. Rd1 {[%emt 0:06:29]} Qc7 {[%emt 0:07:13]} 15. c5 {[%emt 0:00:16]} Nbc4 {[%emt 0:04:13]} 16. f4 {[%emt 0:04:02]} Bh6 {[%emt 0:01:46]} 17. N1d2 {[%emt 0:17:25]} a5 {[%emt 0:00:06]} 18. a4 {[%emt 0:05:32]} Be6 {[%emt 0:04:31]} 19. fxe5 {[%emt 0:09:24]} Rfd8 {[%emt 0:04:43]} 20. Rb1 {[%emt 0:07:14]} Ne3 {[%emt 0:06:34]} 21. Re1 {[%emt 0:02:10]} Bxb3 {[%emt 0:19:05]} 22. Nxb3 {[%emt 0:00:03]} Nxg2 {[%emt 0:00:23]} 23. Qxh6 {[%emt 0:00:05]} Nxe1 {[%emt 0:00:03]} 24. Rxe1 {[%emt 0:01:03]} b6 {[%emt 0:02:09]} 25. Rf1 {[%emt 0:00:47]} Qc6 {[%emt 0:00:08]} 26. Qf4 {[%emt 0:04:53]} Qd5 {[%emt 0:00:02]} 27. Nd4 {[%emt 0:00:51]} bxc5 {[%emt 0:00:46]} 28. Nf3 {[%emt 0:00:31]} Rf8 {[%emt 0:00:10]} 29. h4 {[%emt 0:01:44]} Rab8 {[%emt 0:00:12]} 30. Qh6 {[%emt 0:02:15]} f6 {[%emt 0:00:28]} 31. h5 {[%emt 0:01:40]} Qe4 {[%emt 0:00:24]} 32. hxg6 {[%emt 0:01:33]} Qxg6 {[%emt 0:01:42]} 33. Qf4 {[%emt 0:00:39]} h5 {[%emt 0:01:42]} 34. exf6 {[%emt 0:02:31]} exf6 {[%emt 0:00:02]} 35. Bxa5 {[%emt 0:01:32]} Rb3 {[%emt 0:00:13]} 36. Qc4+ {[%emt 0:01:34]} Kh8 {[%emt 0:00:27]} 37. Bc7 {[%emt 0:00:18]} Rb7 {[%emt 0:00:32]} 38. Bf4 {[%emt 0:01:25]} Re8 {[%emt 0:00:02]} 39. Qxc5 {[%emt 0:00:27]} Kh7 {[%emt 0:01:16]} 40. Nh4 {[%emt 0:01:27]} Qg4 {[%emt 0:00:15]} 41. Qc6 {[%emt 0:00:49]} 1-0

[Event "17th Memorial Lezcano Montalvo 2025"]
[Site "Gran Canaria"]
[Date "2025.04.20"]
[Round "9.8"]
[White "Castellanos Gomez, Alejandro"]
[Black "Fiorito, Francisco"]
[Result "0-1"]
[Annotator "ChessBase"]
[ECO "C79"]
[WhiteElo "2267"]
[BlackElo "2431"]
[PlyCount "72"]
[EventDate "2025.04.13"]
[EventType "swiss"]
[EventCountry "ESP"]
[SourceTitle "playchess.com"]
[Source "ChessBase"]
[SourceQuality "1"]
[TimeControl "5400+30"]

1. e4 {[%emt 0:00:02]} e5 {[%emt 0:00:24]} 2. Nf3 {[%emt 0:00:08]} Nc6 {[%emt 0:00:20]} 3. Bb5 {[%emt 0:00:07]} a6 {[%emt 0:00:57]} 4. Ba4 {[%emt 0:00:06]} Nf6 {[%emt 0:00:24]} 5. O-O {[%emt 0:00:25]} d6 {[%emt 0:00:49]} 6. Bxc6+ {[%emt 0:13:03]} bxc6 {[%emt 0:00:29]} 7. Nc3 {[%emt 0:00:05]} Bg4 {[%emt 0:16:04]} 8. h3 {[%emt 0:00:46]} Bh5 {[%emt 0:03:04]} 9. Re1 {[%emt 0:12:36]} Qd7 {[%emt 0:20:52]} 10. d4 {[%emt 0:21:47]} exd4 {[%emt 0:12:33]} 11. Qxd4 {[%emt 0:00:30]} Bxf3 {[%emt 0:00:16]} 12. gxf3 {[%emt 0:00:05]} Be7 {[%emt 0:00:46]} 13. Kh2 {[%emt 0:05:15]} O-O {[%emt 0:01:50]} 14. f4 {[%emt 0:01:09]} Nh5 {[%emt 0:05:57]} 15. Rg1 {[%emt 0:06:21]} f5 {[%emt 0:02:10]} 16. e5 {[%emt 0:03:40]} Qe6 {[%emt 0:04:47]} 17. Be3 {[%emt 0:06:47]} Rae8 {[%emt 0:03:18]} 18. Qd1 {[%emt 0:07:14]} Qh6 {[%emt 0:00:29]} 19. Qf3 {[%emt 0:00:33]} dxe5 {[%emt 0:06:45]} 20. fxe5 {[%emt 0:00:07]} f4 {[%emt 0:00:04]} 21. Bd2 {[%emt 0:00:29]} Rf5 {[%emt 0:00:42]} 22. Rae1 {[%emt 0:06:06]} Bf8 {[%emt 0:02:29]} 23. Ne4 {[%emt 0:02:42]} Rexe5 {[%emt 0:05:25]} 24. Bc3 {[%emt 0:00:17]} Rd5 {[%emt 0:00:22]} 25. Rg4 {[%emt 0:02:16]} c5 {[%emt 0:04:39]} 26. b3 {[%emt 0:00:29]} Qc6 {[%emt 0:00:36]} 27. Rg5 {[%emt 0:07:29]} Rxg5 {[%emt 0:03:31]} 28. Nxg5 {[%emt 0:00:09]} Qd7 {[%emt 0:02:48]} 29. Ne6 {[%emt 0:02:04]} c6 {[%emt 0:00:40]} 30. Nxf8 {[%emt 0:00:31]} Kxf8 {[%emt 0:00:01]} 31. Be5 {[%emt 0:00:57]} Qf5 {[%emt 0:00:45]} 32. Qe2 {[%emt 0:00:31]} Kg8 {[%emt 0:01:23]} 33. c4 {[%emt 0:01:12]} f3 {[%emt 0:00:27]} 34. Qe3 {[%emt 0:00:12]} Rd3 {[%emt 0:00:19]} 35. Qxc5 {[%emt 0:00:17]} Nf4 {[%emt 0:00:17]} 36. Kg3 {[%emt 0:01:21]} Qg5+ {[%emt 0:00:12]} 0-1

[Event "17th Memorial Lezcano Montalvo 2025"]
[Site "Gran Canaria"]
[Date "2025.04.20"]
[Round "9.9"]
[White "Calzetta Ruiz, Monica"]
[Black "Ambartsumova, Karina"]
[Result "0-1"]
[Annotator "ChessBase"]
[ECO "E63"]
[WhiteElo "2224"]
[BlackElo "2405"]
[PlyCount "80"]
[EventDate "2025.04.13"]
[EventType "swiss"]
[EventCountry "ESP"]
[SourceTitle "playchess.com"]
[Source "ChessBase"]
[SourceQuality "1"]
[TimeControl "5400+30"]

1. d4 {[%emt 0:00:03]} Nf6 {[%emt 0:00:07]} 2. Nf3 {[%emt 0:00:05]} g6 {[%emt 0:00:07]} 3. c4 {[%emt 0:00:06]} Bg7 {[%emt 0:00:07]} 4. g3 {[%emt 0:00:06]} O-O {[%emt 0:05:03]} 5. Bg2 {[%emt 0:00:05]} d6 {[%emt 0:04:51]} 6. O-O {[%emt 0:00:15]} Nc6 {[%emt 0:01:28]} 7. Nc3 {[%emt 0:00:21]} a6 {[%emt 0:00:14]} 8. e4 {[%emt 0:02:26]} Bg4 {[%emt 0:01:44]} 9. Be3 {[%emt 0:03:39]} Nd7 {[%emt 0:04:58]} 10. Ne2 {[%emt 0:10:20]} Na5 {[%emt 0:05:15]} 11. b3 {[%emt 0:10:26]} c5 {[%emt 0:00:54]} 12. h3 {[%emt 0:01:19]} Bxf3 {[%emt 0:00:06]} 13. Bxf3 {[%emt 0:00:04]} cxd4 {[%emt 0:04:11]} 14. Bxd4 {[%emt 0:01:29]} Bxd4 {[%emt 0:01:05]} 15. Nxd4 {[%emt 0:00:16]} Nc6 {[%emt 0:00:51]} 16. Bg2 {[%emt 0:03:56]} Rc8 {[%emt 0:02:11]} 17. Kh2 {[%emt 0:02:22]} Nxd4 {[%emt 0:03:58]} 18. Qxd4 {[%emt 0:02:16]} b5 {[%emt 0:01:29]} 19. Rfc1 {[%emt 0:06:54]} bxc4 {[%emt 0:08:13]} 20. Rxc4 {[%emt 0:00:11]} Rxc4 {[%emt 0:01:07]} 21. Qxc4 {[%emt 0:00:10]} Qb6 {[%emt 0:00:24]} 22. f4 {[%emt 0:07:40]} e5 {[%emt 0:19:42]} 23. Rd1 {[%emt 0:03:49]} Nf6 {[%emt 0:06:11]} 24. Qd3 {[%emt 0:05:57]} exf4 {[%emt 0:06:35]} 25. gxf4 {[%emt 0:00:15]} Nh5 {[%emt 0:01:01]} 26. Qxd6 {[%emt 0:08:12]} Qf2 {[%emt 0:00:08]} 27. f5 {[%emt 0:00:34]} Re8 {[%emt 0:03:59]} 28. Rd2 {[%emt 0:04:54]} Qh4 {[%emt 0:00:10]} 29. fxg6 {[%emt 0:08:49]} hxg6 {[%emt 0:01:00]} 30. Bf3 {[%emt 0:01:13]} Nf4 {[%emt 0:03:29]} 31. Qd7 {[%emt 0:00:10]} Re7 {[%emt 0:01:33]} 32. Qg4 {[%emt 0:00:55]} Qf6 {[%emt 0:00:16]} 33. Kg3 {[%emt 0:04:17]} Nh5+ {[%emt 0:01:02]} 34. Kg2 {[%emt 0:01:15]} Rc7 {[%emt 0:00:35]} 35. h4 {[%emt 0:02:47]} Rc3 {[%emt 0:00:56]} 36. Rf2 {[%emt 0:00:29]} Nf4+ {[%emt 0:01:32]} 37. Kg3 {[%emt 0:00:33]} Nd3 {[%emt 0:00:15]} 38. Rf1 {[%emt 0:00:18]} Qd6+ {[%emt 0:01:32]} 39. Kg2 {[%emt 0:00:27]} Rc2+ {[%emt 0:00:20]} 40. Be2 {[%emt 0:00:06]} Ne5 {[%emt 0:00:06]} 0-1